fUST/lending_fUST_20250128
["ID","MTS","AMOUNT","RATE_DAILY","PERIOD"]
[350689202,1738062637999,-500.0,0.00016437,2]
[350689203,1738062638009,-113.90988019,0.00016437,2]
[350689412,1738062640111,-386.09011981,0.00016437,2]
[350689414,1738062640121,-500.0,0.00016437,2]
[350689416,1738062640131,-500.0,0.00016437,2]
[350689418,1738062640141,-500.0,0.00016437,2]
[350689421,1738062640150,-500.0,0.00016437,2]
[350689422,1738062640159,-77.90988019,0.00016437,2]
[350690041,1738062645920,-839.51433284,0.00016437,2]
[350690044,1738062645930,-422.09011981,0.00016437,2]
[350690046,1738062645941,-500.0,0.00016437,2]
[350690048,1738062645951,-500.0,0.00016437,2]
[350690050,1738062645961,-500.0,0.00016437,2]
[350690052,1738062645970,-500.0,0.00016437,2]
[350690053,1738062645980,-500.0,0.00016437,2]
[350690056,1738062645989,-500.0,0.00016437,2]
[350690057,1738062645998,-500.0,0.00016437,2]
[350690059,1738062646007,-458.20722989,0.00016437,2]
[350690062,1738062646018,-41.79277011,0.00016437,2]
[350690064,1738062646027,-500.0,0.00016437,2]
[350690066,1738062646037,-500.0,0.00016437,2]
[350690068,1738062646046,-500.0,0.00016437,2]
[350690070,1738062646056,-591.88762822,0.00016437,2]
[350690072,1738062646065,-500.0,0.00016437,2]
[350690074,1738062646074,-500.0,0.00016437,2]
[350690076,1738062646084,-500.0,0.00016437,2]
[350690078,1738062646094,-500.0,0.00016437,2]
[350690080,1738062646103,-500.0,0.00016437,2]
[350690082,1738062646113,-500.0,0.00016437,2]
[350690084,1738062646123,-500.0,0.00016437,2]
[350690086,1738062646132,-2242.62998987,0.00016438,2]
[350690088,1738062646141,-500.0,0.00016438,2]
[350690090,1738062646151,-500.0,0.00016438,2]
[350690092,1738062646160,-500.0,0.00016438,2]
[350690094,1738062646169,-500.0,0.00016438,2]
[350690096,1738062646178,-500.0,0.00016438,2]
[350690098,1738062646187,-500.0,0.00016438,2]
[350690100,1738062646197,-473.63112527,0.00016438,2]
[350690102,1738062646206,-599.57198947,0.00016438,2]
[350690104,1738062646215,-500.0,0.00016438,2]
[350690106,1738062646225,-500.0,0.00016438,2]
[350690108,1738062646234,-500.0,0.00016438,2]
[350690110,1738062646243,-500.0,0.00016438,2]
[350690112,1738062646252,-500.0,0.00016438,2]
[350690114,1738062646261,-500.0,0.00016438,2]
[350690116,1738062646270,-500.0,0.00016438,2]
[350690118,1738062646279,-500.0,0.00016438,2]
[350690120,1738062646289,-402.33793813,0.00016438,2]
[350691955,1738062709714,319.380831,0.00013973,2]
[350691966,1738062856975,373.6340715,0.0001515,2]
[350691967,1738062878747,500.0,0.00016438,14]
[350691968,1738062951136,1422.7804376,0.00015128,2]
[350691969,1738062989794,321.978317,0.00015074,2]
[350691970,1738063022012,1383.5612328,0.00015074,2]
[350691971,1738063199708,753.4,0.00010959,2]
[350691972,1738063261938,376.79,0.00010959,2]
[350691973,1738063272631,313.99,0.00010959,2]
[350691974,1738063283346,261.66,0.00010959,2]
[350691975,1738063294285,218.05,0.00010959,2]
[350691976,1738063305025,181.7,0.00010959,2]
[350691977,1738063315960,151.42,0.00010959,2]
[350691978,1738063327029,757.13,0.00010959,2]
[350691980,1738063630435,728.9565725,0.00014935,2]
[350691981,1738063644171,-300.0,0.00015377,2]
[350691982,1738063644191,-2333.2355406,0.00015378,4]
[350691983,1738063647076,24900.0,0.00015056,2]
[350691984,1738063649151,-3992.22689308,0.00015378,4]
[350691986,1738063664536,312.986683,0.00013973,2]
[350691989,1738063691784,184.246737,0.0001515,2]
[350692004,1738063757119,-300.0,0.00015377,2]
[350692005,1738063757142,-10196.53756632,0.00015378,4]
[350692006,1738063757162,-249.9801418,0.00015378,2]
[350692007,1738063757183,-204.29629188,0.00015437,2]
[350692010,1738063765212,10000.0,0.0001515,2]
[350692011,1738063821339,-251.1504119,0.00015437,2]
[350692012,1738063821361,-293.301,0.0001574,2]
[350692013,1738063821383,-162.197438,0.0001598,4]
[350692014,1738063821404,-300.0,0.00015999,2]
[350692015,1738063821424,-1744.77818612,0.00016,2]
[350692016,1738063821444,-3526.93208174,0.00016,2]
[350692017,1738063821465,-666.028,0.00016338,2]
[350692018,1738063821486,-187.74536779,0.00016338,2]
[350692019,1738063821508,-454.5880058,0.00016338,2]
[350692020,1738063821529,-12746.50438749,0.00016346,2]
[350692021,1738063821550,-158.12,0.00016381,2]
[350692022,1738063821571,-454.5880058,0.00016406,2]
[350692023,1738063821593,-621.5254625,0.00016409,2]
[350692024,1738063821614,-151.0,0.00016428,2]
[350692025,1738063821637,-500.0,0.00016432,2]
[350692026,1738063821663,-192.89693223,0.00016432,2]
[350692027,1738063821688,-500.0,0.00016432,2]
[350692028,1738063821708,-500.0,0.00016432,2]
[350692029,1738063821729,-500.0,0.00016432,2]
[350692030,1738063821757,-500.0,0.00016432,2]
[350692031,1738063821782,-500.0,0.00016432,2]
[350692032,1738063821802,-551.92054594,0.00016432,2]
[350692033,1738063821823,-500.0,0.00016432,2]
[350692034,1738063821844,-500.0,0.00016432,2]
[350692035,1738063821868,-500.0,0.00016432,2]
[350692036,1738063821894,-500.0,0.00016432,2]
[350692037,1738063821916,-616.24415839,0.00016432,2]
[350692038,1738063821944,-500.0,0.00016432,2]
[350692039,1738063821966,-500.0,0.00016432,2]
[350692040,1738063821994,-500.0,0.00016432,2]
[350692041,1738063822016,-500.0,0.00016432,2]
[350692042,1738063822042,-500.0,0.00016432,2]
[350692043,1738063822065,-500.0,0.00016432,2]
[350692044,1738063822090,-500.0,0.00016432,2]
[350692045,1738063822114,-500.0,0.00016432,2]
[350692046,1738063822135,-500.0,0.00016432,2]
[350692047,1738063822160,-500.0,0.00016432,2]
[350692048,1738063822184,-500.0,0.00016432,2]
[350692049,1738063822207,-500.0,0.00016432,2]
[350692050,1738063822232,-500.0,0.00016432,2]
[350692051,1738063822257,-500.0,0.00016432,2]
[350692052,1738063822280,-500.0,0.00016432,2]
[350692053,1738063822303,-500.0,0.00016432,2]
[350692054,1738063822326,-520.43048923,0.00016432,2]
[350692055,1738063822351,-500.0,0.00016432,2]
[350692056,1738063822372,-500.0,0.00016432,2]
[350692057,1738063822401,-500.0,0.00016432,2]
[350692058,1738063822424,-500.0,0.00016432,2]
[350692059,1738063822451,-500.0,0.00016432,2]
[350692060,1738063822475,-500.0,0.00016432,2]
[350692061,1738063822498,-500.0,0.00016432,2]
[350692062,1738063822526,-500.0,0.00016432,2]
[350692063,1738063822550,-500.0,0.00016432,2]
[350692064,1738063822675,-500.0,0.00016432,2]
[350692065,1738063822704,-500.0,0.00016432,2]
[350692066,1738063822727,-500.0,0.00016432,2]
[350692067,1738063822756,-500.0,0.00016432,2]
[350692068,1738063822779,-500.0,0.00016432,2]
[350692069,1738063822804,-500.0,0.00016432,2]
[350692070,1738063822829,-500.0,0.00016432,2]
[350692071,1738063822853,-500.0,0.00016432,2]
[350692072,1738063822874,-500.0,0.00016432,2]
[350692073,1738063822898,-500.0,0.00016432,2]
[350692074,1738063822926,-500.0,0.00016432,2]
[350692075,1738063822953,-500.0,0.00016432,2]
[350692076,1738063822976,-500.0,0.00016432,2]
[350692077,1738063823004,-500.0,0.00016432,2]
[350692078,1738063823029,-500.0,0.00016432,2]
[350692079,1738063823055,-500.0,0.00016432,2]
[350692080,1738063823080,-500.0,0.00016432,2]
[350692081,1738063823104,-500.0,0.00016432,2]
[350692082,1738063823127,-500.0,0.00016432,2]
[350692083,1738063823152,-500.0,0.00016432,2]
[350692084,1738063823177,-500.0,0.00016432,2]
[350692085,1738063823200,-500.0,0.00016432,2]
[350692086,1738063823224,-500.0,0.00016432,2]
[350692087,1738063823249,-500.0,0.00016432,2]
[350692088,1738063823272,-500.0,0.00016432,2]
[350692089,1738063823296,-500.0,0.00016432,2]
[350692090,1738063823321,-500.0,0.00016432,2]
[350692091,1738063823345,-500.0,0.00016432,2]
[350692092,1738063823368,-500.0,0.00016432,2]
[350692093,1738063823393,-500.0,0.00016432,2]
[350692094,1738063823417,-500.0,0.00016432,2]
[350692095,1738063823442,-500.0,0.00016432,2]
[350692096,1738063823467,-500.0,0.00016432,2]
[350692097,1738063823491,-500.0,0.00016432,2]
[350692098,1738063823516,-500.0,0.00016432,2]
[350692099,1738063823541,-500.0,0.00016432,2]
[350692100,1738063823567,-500.0,0.00016432,2]
[350692101,1738063823593,-500.0,0.00016432,2]
[350692102,1738063823619,-500.0,0.00016432,2]
[350692103,1738063823645,-500.0,0.00016432,2]
[350692104,1738063823672,-500.0,0.00016432,2]
[350692105,1738063823700,-500.0,0.00016432,2]
[350692106,1738063823727,-500.0,0.00016432,2]
[350692107,1738063823754,-500.0,0.00016432,2]
[350692108,1738063823783,-500.0,0.00016432,2]
[350692109,1738063823811,-500.0,0.00016432,2]
[350692110,1738063823838,-500.0,0.00016432,2]
[350692111,1738063823862,-500.0,0.00016432,2]
[350692112,1738063823887,-500.0,0.00016432,2]
[350692113,1738063823913,-500.0,0.00016432,2]
[350692114,1738063823938,-238.28403432,0.00016432,2]
[350692115,1738063823963,-500.0,0.00016432,2]
[350692116,1738063823988,-500.0,0.00016432,2]
[350692117,1738063824013,-500.0,0.00016432,2]
[350692118,1738063824037,-500.0,0.00016432,2]
[350692119,1738063824061,-500.0,0.00016432,2]
[350692120,1738063824082,-500.0,0.00016437,2]
[350692121,1738063824102,-255.01512834,0.00016437,2]
[350692122,1738063824123,-500.0,0.00016437,2]
[350692123,1738063824146,-184.65954905,0.00016438,2]
[350692124,1738063824169,-500.0,0.00016438,2]
[350692125,1738063824191,-500.0,0.00016438,2]
[350692126,1738063824213,-500.0,0.00016438,2]
[350692127,1738063824234,-500.0,0.00016438,2]
[350692128,1738063824255,-327.49916583,0.00016438,2]
[350692129,1738063824275,-506.91863008,0.00016438,2]
[350692130,1738063824295,-500.0,0.00016438,2]
[350692131,1738063824314,-548.09,0.00016438,2]
[350692132,1738063824337,-500.0,0.00016438,2]
[350692133,1738063824362,-615.69,0.00016438,2]
[350692134,1738063824384,-500.0,0.00016438,2]
[350692135,1738063824409,-500.0,0.00016438,2]
[350692136,1738063824430,-508.456621,0.00016438,2]
[350692137,1738063824450,-500.0,0.00016438,2]
[350692138,1738063824471,-500.0,0.00016438,2]
[350692139,1738063824494,-500.0,0.00016438,2]
[350692140,1738063824515,-504.05673413,0.00016438,2]
[350692141,1738063824538,-0.37966432,0.00016438,2]
[350692162,1738063832169,-499.62033568,0.00016438,2]
[350692164,1738063832179,-504.67454969,0.00016438,2]
[350692166,1738063832188,-501.56075748,0.00016438,2]
[350692168,1738063832198,-502.35503951,0.00016438,2]
[350692170,1738063832207,-500.0,0.00016438,2]
[350692172,1738063832216,-500.0,0.00016438,2]
[350692174,1738063832225,-500.93254395,0.00016438,2]
[350692176,1738063832235,-500.0,0.00016438,2]
[350692178,1738063832244,-501.40668572,0.00016438,2]
[350692180,1738063832254,-611.53006297,0.00016438,2]
[350692182,1738063832263,-190.35553604,0.00016438,2]
[350692184,1738063832273,-500.0,0.00016438,2]
[350692185,1738063832283,-500.0,0.00016438,2]
[350692186,1738063832292,-500.0,0.00016438,2]
[350692187,1738063832302,-476.00108259,0.00016438,2]
[350692188,1738063832312,-503.4158796,0.00016438,2]
[350692189,1738063832320,-497.31558103,0.00016438,2]
[350692190,1738063832330,-500.0,0.00016438,2]
[350692191,1738063832339,-500.0,0.00016438,2]
[350692192,1738063832349,-502.60071862,0.00016438,2]
[350692193,1738063832359,-505.62343607,0.00016438,2]
[350692194,1738063832368,-502.45447302,0.00016438,2]
[350692195,1738063832378,-500.0,0.00016438,2]
[350692196,1738063832387,-502.13516775,0.00016438,2]
[350692197,1738063832397,-522.61,0.00016438,2]
[350692198,1738063832407,-500.0,0.00016438,2]
[350692199,1738063832416,-505.11100683,0.00016438,2]
[350692200,1738063832426,-500.0,0.00016438,2]
[350692201,1738063832436,-502.61301712,0.00016438,2]
[350692202,1738063832446,-504.62350735,0.00016438,2]
[350692203,1738063832455,-503.22600764,0.00016438,2]
[350692204,1738063832465,-503.55094054,0.00016438,2]
[350692205,1738063832474,-500.0,0.00016438,2]
[350692206,1738063832483,-500.0,0.00016438,2]
[350692207,1738063832493,-497.000863,0.00016438,2]
[350692208,1738063832502,-502.89904312,0.00016438,2]
[350692209,1738063832511,-500.0,0.00016438,2]
[350692210,1738063832520,-500.0,0.00016438,2]
[350692211,1738063832530,-500.0,0.00016438,2]
[350692212,1738063832540,-500.0,0.00016438,2]
[350692213,1738063832549,-500.0,0.00016438,2]
[350692214,1738063832558,-500.0,0.00016438,2]
[350692215,1738063832568,-500.0,0.00016438,2]
[350692216,1738063832577,-500.0,0.00016438,2]
[350692217,1738063832587,-500.0,0.00016438,2]
[350692218,1738063832597,-500.0,0.00016438,2]
[350692219,1738063832606,-500.0,0.00016438,2]
[350692220,1738063832615,-500.0,0.00016438,2]
[350692221,1738063832624,-500.0,0.00016438,2]
[350692222,1738063832634,-500.0,0.00016438,2]
[350692223,1738063832643,-500.0,0.00016438,2]
[350692224,1738063832652,-500.0,0.00016438,2]
[350692225,1738063832662,-500.0,0.00016438,2]
[350692226,1738063832671,-500.0,0.00016438,2]
[350692227,1738063832680,-500.0,0.00016438,2]
[350692228,1738063832690,-500.0,0.00016438,2]
[350692229,1738063832699,-500.0,0.00016438,2]
[350692230,1738063832708,-500.0,0.00016438,2]
[350692231,1738063832717,-518.79,0.00016438,2]
[350692232,1738063832726,-500.0,0.00016438,2]
[350692233,1738063832736,-500.0,0.00016438,2]
[350692234,1738063832746,-500.0,0.00016438,2]
[350692235,1738063832757,-500.0,0.00016438,2]
[350692236,1738063832766,-500.0,0.00016438,2]
[350692237,1738063832775,-500.0,0.00016438,2]
[350692238,1738063832784,-623.81369715,0.00016438,2]
[350692239,1738063832793,-500.0,0.00016438,2]
[350692240,1738063832803,-496.13841237,0.00016438,2]
[350692241,1738063832811,-500.0,0.00016438,2]
[350692242,1738063832820,-500.0,0.00016438,2]
[350692243,1738063832831,-500.0,0.00016438,2]
[350692244,1738063832840,-195.99017466,0.00016438,2]
[350692245,1738063832849,-500.0,0.00016438,2]
[350692246,1738063832859,-500.0,0.00016438,2]
[350692247,1738063832869,-500.0,0.00016438,2]
[350692248,1738063832878,-278.8,0.00016438,2]
[350692249,1738063832887,-500.0,0.00016438,2]
[350692250,1738063832896,-500.0,0.00016438,2]
[350692251,1738063832906,-500.0,0.00016438,2]
[350692252,1738063832915,-500.0,0.00016438,2]
[350692253,1738063832925,-500.0,0.00016438,2]
[350692254,1738063832935,-500.0,0.00016438,2]
[350692255,1738063832944,-500.0,0.00016438,2]
[350692256,1738063832953,-500.0,0.00016438,2]
[350692257,1738063832963,-237.24399952,0.00016438,2]
[350692258,1738063832972,-305.69731198,0.00016438,2]
[350692259,1738063832985,-194.30268802,0.00016438,2]
[350692260,1738063832995,-500.0,0.00016438,2]
[350692261,1738063833004,-500.0,0.00016438,2]
[350692262,1738063833014,-500.0,0.00016438,2]
[350692263,1738063833023,-502.41727065,0.00016438,2]
[350692264,1738063833033,-500.0,0.00016438,2]
[350692265,1738063833042,-500.0,0.00016438,2]
[350692266,1738063833052,-500.0,0.00016438,2]
[350692267,1738063833061,-500.0,0.00016438,2]
[350692268,1738063833070,-500.0,0.00016438,2]
[350692269,1738063833080,-500.0,0.00016438,2]
[350692270,1738063833089,-500.0,0.00016438,2]
[350692271,1738063833098,-500.0,0.00016438,2]
[350692272,1738063833107,-500.0,0.00016438,2]
[350692273,1738063833117,-445.31860013,0.00016438,2]
[350692274,1738063833127,-500.0,0.00016438,2]
[350692275,1738063833138,-500.0,0.00016438,2]
[350692276,1738063833147,-505.24592812,0.00016438,2]
[350692277,1738063833157,-500.0,0.00016438,2]
[350692278,1738063833167,-500.0,0.00016438,2]
[350692279,1738063833177,-660.63,0.00016438,2]
[350692280,1738063833187,-3552.63,0.00016438,2]
[350692281,1738063833197,-500.0,0.00016438,2]
[350692282,1738063833207,-500.0,0.00016438,2]
[350692283,1738063833216,-500.0,0.00016438,2]
[350692284,1738063833225,-500.0,0.00016438,2]
[350692285,1738063833234,-315.63320055,0.00016438,2]
[350692286,1738063833244,-500.0,0.00016438,2]
[350692287,1738063833254,-726.18,0.00016438,2]
[350692288,1738063833263,-500.0,0.00016438,2]
[350692289,1738063833272,-500.0,0.00016438,2]
[350692290,1738063833282,-500.0,0.00016438,2]
[350692291,1738063833292,-500.0,0.00016438,2]
[350692292,1738063833302,-510.42339776,0.00016438,2]
[350692293,1738063833312,-500.0,0.00016438,2]
[350692294,1738063833321,-500.0,0.00016438,2]
[350692295,1738063833331,-500.0,0.00016438,2]
[350692296,1738063833341,-739.57,0.00016438,2]
[350692297,1738063833351,-500.0,0.00016438,2]
[350692298,1738063833361,-500.0,0.00016438,2]
[350692299,1738063833371,-500.0,0.00016438,2]
[350692300,1738063833380,-500.0,0.00016438,2]
[350692301,1738063833389,-500.0,0.00016438,2]
[350692302,1738063833399,-500.0,0.00016438,2]
[350692303,1738063833412,-500.0,0.00016438,2]
[350692304,1738063833424,-549.15,0.00016438,2]
[350692305,1738063833434,-500.0,0.00016438,2]
[350692306,1738063833443,-500.0,0.00016438,2]
[350692307,1738063833453,-220.28531487,0.00016438,2]
[350692308,1738063833465,-279.71468513,0.00016438,2]
[350692309,1738063833475,-129.33342681,0.00016438,2]
[350692310,1738063833487,-370.66657319,0.00016438,2]
[350692311,1738063833496,-63.19261721,0.00016438,2]
[350692312,1738063833509,-436.80738279,0.00016438,2]
[350692313,1738063833519,-500.0,0.00016438,2]
[350692314,1738063833528,-27.04261721,0.00016438,2]
[350692315,1738063833541,-922.08738279,0.00016438,2]
[350692316,1738063833551,-500.0,0.00016438,2]
[350692317,1738063833561,-3708.08617485,0.00016438,2]
[350692350,1738063837906,-10094.78382515,0.00016438,2]
[350692352,1738063837916,-1738.7,0.00016438,2]
[350692354,1738063837926,-500.0,0.00016438,2]
[350692356,1738063837936,-500.0,0.00016438,2]
[350692358,1738063837946,-1458.8,0.00016438,2]
[350692360,1738063837955,-1458.8,0.00016438,2]
[350692362,1738063837964,-1458.8,0.00016438,2]
[350692364,1738063837974,-1458.8,0.00016438,2]
[350692366,1738063837983,-1458.8,0.00016438,2]
[350692368,1738063837992,-1458.8,0.00016438,2]
[350692370,1738063838002,-1458.8,0.00016438,2]
[350692372,1738063838011,-1458.8,0.00016438,2]
[350692374,1738063838020,-1458.8,0.00016438,2]
[350692376,1738063838030,-1458.8,0.00016438,2]
[350692378,1738063838039,-500.0,0.00016438,2]
[350692380,1738063838048,-500.0,0.00016438,2]
[350692382,1738063838058,-310.11151211,0.00016438,2]
[350692385,1738063838070,-189.88848789,0.00016438,2]
[350692387,1738063838079,-500.0,0.00016438,2]
[350692389,1738063838088,-515.65945968,0.00016438,2]
[350692391,1738063838098,-500.0,0.00016438,2]
[350692393,1738063838107,-3219.89013629,0.00016438,2]
[350692396,1738063838129,-500.0,0.00016438,2]
[350692398,1738063838141,-1874.54986371,0.00016438,2]
[350692400,1738063838151,-500.0,0.00016438,2]
[350692402,1738063838161,-500.0,0.00016438,2]
[350692405,1738063838170,-589.26,0.00016438,2]
[350692408,1738063838180,-500.0,0.00016438,2]
[350692410,1738063838190,-500.0,0.00016438,2]
[350692412,1738063838199,-500.0,0.00016438,2]
[350692414,1738063838208,-911.49,0.00016438,2]
[350692416,1738063838217,-809.43,0.00016438,2]
[350692418,1738063838227,-500.0,0.00016438,2]
[350692420,1738063838236,-500.0,0.00016438,2]
[350692422,1738063838245,-573.9,0.00016438,2]
[350692424,1738063838254,-500.0,0.00016438,2]
[350692426,1738063838264,-500.0,0.00016438,2]
[350692428,1738063838273,-563.04,0.00016438,2]
[350692430,1738063838282,-500.0,0.00016438,2]
[350692432,1738063838292,-519.82,0.00016438,2]
[350692434,1738063838301,-595.14374155,0.00016438,2]
[350692437,1738063838311,-500.0,0.00016438,2]
[350692439,1738063838320,-500.0,0.00016438,2]
[350692441,1738063838331,-500.0,0.00016438,2]
[350692443,1738063838340,-500.0,0.00016438,2]
[350692445,1738063838350,-500.0,0.00016438,2]
[350692446,1738063838360,-210.42,0.00016438,2]
[350692448,1738063838369,-500.0,0.00016438,2]
[350692451,1738063838379,-500.0,0.00016438,2]
[350692453,1738063838389,-500.0,0.00016438,2]
[350692454,1738063838398,-500.0,0.00016438,2]
[350692457,1738063838412,-193.78666283,0.00016438,2]
[350692459,1738063838422,-571.69,0.00016438,2]
[350692460,1738063838433,-500.0,0.00016438,2]
[350692462,1738063838443,-500.0,0.00016438,2]
[350692464,1738063838452,-427.54091856,0.00016438,2]
[350692466,1738063838462,-500.0,0.00016438,2]
[350692468,1738063838472,-500.0,0.00016438,2]
[350692470,1738063838481,-500.0,0.00016438,2]
[350692472,1738063838490,-2561.53,0.00016438,2]
[350692474,1738063838500,-500.0,0.00016438,2]
[350692476,1738063838509,-173.15,0.00016438,2]
[350692478,1738063838518,-269.37023385,0.00016438,2]
[350692479,1738063838528,-1705.35,0.00016438,2]
[350692480,1738063838538,-500.0,0.00016438,2]
[350692482,1738063838548,-500.0,0.00016438,2]
[350692484,1738063838557,-500.0,0.00016438,2]
[350692486,1738063838566,-500.0,0.00016438,2]
[350692487,1738063838576,-500.0,0.00016438,2]
[350692488,1738063838586,-500.0,0.00016438,2]
[350692489,1738063838595,-470.4775395,0.00016438,2]
[350692490,1738063838604,-981.94,0.00016438,2]
[350692491,1738063838614,-500.0,0.00016438,2]
[350692492,1738063838623,-500.0,0.00016438,2]
[350692493,1738063838632,-500.0,0.00016438,2]
[350692494,1738063838641,-3911.49,0.00016438,2]
[350692495,1738063838651,-500.0,0.00016438,2]
[350692496,1738063838660,-501.16142,0.00016473,2]
[350692497,1738063838669,-502.33169482,0.00016473,2]
[350692498,1738063838679,-500.0,0.00016473,2]
[350692499,1738063838688,-516.73243931,0.00016473,2]
[350692500,1738063838697,-438.61048958,0.00016473,2]
[350692501,1738063838706,-500.0,0.00016473,2]
[350692502,1738063838715,-268.5436392,0.00016473,2]
[350692503,1738063838724,-504.56305962,0.00016473,2]
[350692504,1738063838734,-500.0,0.00016473,2]
[350692505,1738063838746,-267.44602279,0.00016473,2]
[350692506,1738063838755,-500.0,0.00016473,2]
[350692507,1738063838764,-500.43544017,0.00016473,2]
[350692508,1738063838773,-500.0,0.00016473,2]
[350692509,1738063838783,-500.0,0.00016473,2]
[350692510,1738063838792,-501.83852922,0.00016473,2]
[350692511,1738063838802,-158.34865914,0.00016473,2]
[350692512,1738063838811,-502.3083084,0.00016473,2]
[350692513,1738063838822,-454.5880058,0.00016475,2]
[350692514,1738063838832,-497.12890298,0.00016475,7]
[350692515,1738063838841,-152.0,0.00016483,2]
[350692516,1738063838850,-621.0,0.000165,2]
[350692517,1738063838860,-454.5880058,0.00016543,2]
[350692518,1738063838869,-151.0,0.00016574,2]
[350692519,1738063838877,-1458.8,0.00016574,2]
[350692520,1738063838886,-1458.8,0.00016574,2]
[350692521,1738063838895,-1458.8,0.00016574,2]
[350692522,1738063838905,-1458.8,0.00016574,2]
[350692523,1738063838920,-1458.8,0.00016574,2]
[350692524,1738063838929,-11893.83211618,0.00016575,5]
[350692525,1738063838939,-500.0,0.00016575,2]
[350692526,1738063838949,-202.41121697,0.00016575,2]
[350692527,1738063838958,-172.4257898,0.00016575,2]
[350692528,1738063838967,-500.0,0.00016575,2]
[350692529,1738063838977,-527.41,0.00016575,2]
[350692530,1738063838986,-500.0,0.00016575,2]
[350692531,1738063838995,-500.0,0.00016575,2]
[350692532,1738063839005,-500.0,0.00016575,2]
[350692533,1738063839014,-500.0,0.00016575,2]
[350692534,1738063839024,-150.34098715,0.00016575,2]
[350692535,1738063839033,-308.5235267,0.00016575,2]
[350692536,1738063839042,-500.0,0.00016575,2]
[350692537,1738063839052,-500.0,0.00016575,2]
[350692538,1738063839061,-564.5,0.00016575,2]
[350692539,1738063839070,-500.0,0.00016575,2]
[350692540,1738063839079,-500.0,0.00016575,2]
[350692541,1738063839089,-500.0,0.00016575,2]
[350692542,1738063839098,-500.0,0.00016575,2]
[350692543,1738063839107,-500.0,0.00016575,2]
[350692544,1738063839116,-500.0,0.00016575,2]
[350692545,1738063839125,-500.0,0.00016575,2]
[350692546,1738063839133,-500.0,0.00016575,2]
[350692547,1738063839142,-500.0,0.00016575,2]
[350692548,1738063839151,-500.0,0.00016575,2]
[350692549,1738063839160,-500.0,0.00016575,2]
[350692550,1738063839170,-500.0,0.00016575,2]
[350692551,1738063839178,-500.0,0.00016575,2]
[350692552,1738063839188,-500.0,0.00016575,2]
[350692553,1738063839197,-500.0,0.00016575,2]
[350692554,1738063839206,-500.0,0.00016575,2]
[350692555,1738063839215,-271.1169109,0.00016575,2]
[350692560,1738063840122,-500.0,0.00016438,2]
[350692562,1738063840132,-228.8830891,0.00016575,2]
[350692563,1738063840141,-500.0,0.00016575,2]
[350692564,1738063840151,-500.0,0.00016575,2]
[350692565,1738063840161,-500.0,0.00016575,2]
[350692566,1738063840171,-500.0,0.00016575,2]
[350692567,1738063840180,-500.0,0.00016575,2]
[350692568,1738063840189,-500.0,0.00016575,2]
[350692569,1738063840198,-169.93512392,0.00016575,2]
[350692570,1738063840207,-500.0,0.00016575,2]
[350692571,1738063840217,-500.0,0.00016575,2]
[350692572,1738063840226,-500.0,0.00016575,2]
[350692573,1738063840235,-500.0,0.00016575,2]